[Event "58th Akiba Rubinstein A 2022"]
[Site "Polanica-Zdroj"]
[Date "2022.08.21"]
[Round "9.5"]
[White "Dziewonski, Dariusz"]
[Black "Kejna, Piotr"]
[Result "1-0"]
[ECO "B30"]
[WhiteElo "2029"]
[BlackElo "1970"]
[Annotator "NA"]
[PlyCount "103"]
[EventDate "2022.08.13"]
[EventCountry "POL"]
[SourceTitle "playchess.com"]
[Source "ChessBase"]
[SourceQuality "1"]
[TimeControl "40/5400+30:1800+30"]

1. e4 {[%emt 0:00:03]} c5 {[%emt 0:00:43]} 2. Nf3 {[%emt 0:00:06]} Nc6 {[%emt 0:00:22]} 3. Bb5 {[%emt 0:00:53]} e6 {[%emt 0:01:08]} 4. O-O {[%emt 0:01:10]} Nd4 {[%emt 0:02:21]} 5. Nxd4 {[%emt 0:05:50]} cxd4 {[%emt 0:00:02]} 6. b3 {[%emt 0:04:02]} a6 {[%emt 0:01:43]} 7. Bd3 {[%emt 0:02:28]} Ne7 {[%emt 0:01:20]} 8. Bb2 {[%emt 0:04:15]} d5 {[%emt 0:03:10]} 9. Qf3 {[%emt 0:07:07]} dxe4 {[%emt 0:03:55]} 10. Bxe4 {[%emt 0:01:54]} Qd7 {[%emt 0:07:43]} 11. c3 {[%emt 0:07:18]} f5 {[%emt 0:02:10]} 12. Bc2 {[%emt 0:03:48]} g6 {[%emt 0:01:08]} 13. Na3 {[%emt 0:06:29]} Bg7 {[%emt 0:03:27]} 14. Nc4 {[%emt 0:07:07]} Qc6 {[%emt 0:02:13]} 15. Bd1 {[%emt 0:08:11]} O-O {[%emt 0:05:15]} 16. Qxc6 {[%emt 0:06:15]} Nxc6 {[%emt 0:00:12]} 17. Nb6 {[%emt 0:03:18]} Rb8 {[%emt 0:00:10]} 18. Bf3 {[%emt 0:01:34]} Rd8 {[%emt 0:11:32]} 19. Rfe1 {[%emt 0:04:31]} Ne5 {[%emt 0:01:54]} 20. Be2 {[%emt 0:08:45]} d3 {[%emt 0:00:32]} 21. Bf1 {[%emt 0:01:00]} Rd6 {[%emt 0:02:13]} 22. f4 {[%emt 0:03:38]} Nf3+ {[%emt 0:03:42]} 23. gxf3 {[%emt 0:00:05]} Rxb6 {[%emt 0:00:05]} 24. Re3 {[%emt 0:03:47]} Rd6 {[%emt 0:00:14]} 25. Ba3 Rd8 {[%emt 0:02:42]} 26. Rxd3 {[%emt 0:00:42]} Rxd3 {[%emt 0:00:43]} 27. Bxd3 {[%emt 0:00:01]} Bd7 {[%emt 0:00:36]} 28. Re1 {[%emt 0:02:25]} Bh6 {[%emt 0:02:56]} 29. Bd6 {[%emt 0:00:21]} Rd8 {[%emt 0:00:45]} 30. Bc7 {[%emt 0:00:15]} Rc8 {[%emt 0:00:33]} 31. Be5 {[%emt 0:00:07]} Bc6 {[%emt 0:00:34]} 32. Bc4 {[%emt 0:01:08]} Re8 {[%emt 0:01:02]} 33. Kf2 {[%emt 0:00:39]} Kf7 {[%emt 0:00:27]} 34. a4 {[%emt 0:01:07]} Bf8 35. d4 {[%emt 0:00:22]} Rc8 {[%emt 0:05:25]} 36. Bd6 {[%emt 0:01:32]} Bd5 {[%emt 0:07:27]} 37. Bxd5 {[%emt 0:00:17]} exd5 {[%emt 0:00:01]} 38. Bxf8 {[%emt 0:00:06]} Kxf8 {[%emt 0:00:08]} 39. Re3 {[%emt 0:00:13]} b5 {[%emt 0:00:47]} 40. axb5 {[%emt 0:00:00]} axb5 {[%emt 0:00:00]} 41. Ke2 {[%emt 0:03:51]} b4 {[%emt 0:03:03]} 42. cxb4 {[%emt 0:03:59]} Rb8 {[%emt 0:00:16]} 43. Kd3 {[%emt 0:00:26]} Rxb4 {[%emt 0:00:26]} 44. Kc3 {[%emt 0:00:06]} Rb5 {[%emt 0:01:15]} 45. b4 {[%emt 0:00:43]} h5 {[%emt 0:00:25]} 46. h4 {[%emt 0:02:07]} Rb8 {[%emt 0:01:16]} 47. Kb3 {[%emt 0:00:25]} Kf7 {[%emt 0:00:56]} 48. Ka4 {[%emt 0:00:37]} Ra8+ {[%emt 0:00:38]} 49. Kb5 {[%emt 0:00:18]} Rc8 {[%emt 0:00:56]} 50. Ka5 {[%emt 0:08:41]} Ra8+ {[%emt 0:00:54]} 51. Kb6 {[%emt 0:00:11]} Ra4 {[%emt 0:00:28]} 52. Kc5 {[%emt 0:00:19]} 1-0

[Event "58th Akiba Rubinstein A 2022"]
[Site "Polanica-Zdroj"]
[Date "2022.08.21"]
[Round "9.6"]
[White "Barwinska, Ewa"]
[Black "Majocha, Piotr"]
[Result "0-1"]
[ECO "C18"]
[WhiteElo "1940"]
[BlackElo "2036"]
[Annotator "NA RC"]
[PlyCount "108"]
[EventDate "2022.08.13"]
[EventCountry "POL"]
[SourceTitle "playchess.com"]
[Source "ChessBase"]
[SourceQuality "1"]
[TimeControl "40/5400+30:1800+30"]

1. e4 {[%emt 0:00:02]} e6 {[%emt 0:00:03]} 2. d4 {[%emt 0:00:06]} d5 {[%emt 0:00:04]} 3. Nc3 {[%emt 0:00:08]} Bb4 {[%emt 0:00:07]} 4. e5 {[%emt 0:00:08]} c5 {[%emt 0:00:04]} 5. a3 {[%emt 0:00:13]} Bxc3+ {[%emt 0:00:08]} 6. bxc3 {[%emt 0:00:04]} Ne7 {[%emt 0:00:11]} 7. Qg4 {[%emt 0:00:05]} Qc7 {[%emt 0:00:16]} 8. Qxg7 {[%emt 0:00:08]} Rg8 {[%emt 0:00:04]} 9. Qxh7 {[%emt 0:00:11]} cxd4 {[%emt 0:00:04]} 10. Qd3 {[%emt 0:00:11]} Qxe5+ {[%emt 0:03:12]} 11. Ne2 {[%emt 0:00:12]} dxc3 {[%emt 0:00:08]} 12. Qxc3 {[%emt 0:00:12]} Nbc6 {[%emt 0:01:17]} 13. Qxe5 {[%emt 0:04:56]} Nxe5 {[%emt 0:00:04]} 14. Nd4 {[%emt 0:04:17]} Bd7 {[%emt 0:07:05]} 15. h4 {[%emt 0:11:07]} f6 {[%emt 0:02:01]} 16. Rb1 {[%emt 0:05:09]} b6 {[%emt 0:01:43]} 17. h5 {[%emt 0:05:58]} Kf7 {[%emt 0:02:35]} 18. g3 {[%emt 0:04:41]} Nc4 {[%emt 0:09:21]} 19. Nb5 {[%emt 0:12:59]} Bxb5 {[%emt 0:01:16]} 20. Rxb5 {[%emt 0:00:07]} Rac8 {[%emt 0:00:37]} 21. Kd1 {[%emt 0:12:00]} Nd6 {[%emt 0:01:46]} 22. Rb3 {[%emt 0:00:11]} Ne4 {[%emt 0:03:43]} 23. Rh2 {[%emt 0:02:08]} e5 {[%emt 0:02:20]} 24. Bd2 {[%emt 0:06:31]} Nxd2 {[%emt 0:04:15]} 25. Kxd2 {[%emt 0:00:06]} Kg7 {[%emt 0:14:13]} 26. g4 {[%emt 0:02:49]} Kh6 {[%emt 0:00:59]} 27. f3 {[%emt 0:00:06]} Rc5 {[%emt 0:06:14]} 28. Rc3 {[%emt 0:04:36]} Rgc8 {[%emt 0:01:12]} 29. Rxc5 {[%emt 0:00:01]} Rxc5 {[%emt 0:00:40]} 30. Re2 {[%emt 0:02:00]} Kg5 {[%emt 0:02:34]} 31. Re3 {[%emt 0:02:09]} d4 {[%emt 0:01:39]} 32. Rb3 {[%emt 0:02:10]} Nd5 {[%emt 0:15:53]} 33. Bd3 {[%emt 0:06:36]} Nc3 {[%emt 0:00:55]} 34. Bf5 {[%emt 0:01:01]} Kf4 {[%emt 0:05:24]} 35. h6 {[%emt 0:01:40]} Rd5 {[%emt 0:00:02]} 36. Be6 {[%emt 0:01:11]} Rd8 {[%emt 0:00:08]} 37. h7 {[%emt 0:00:08]} Rh8 {[%emt 0:00:03]} 38. Bg8 {[%emt 0:00:40]} Kxf3 {[%emt 0:00:06]} 39. Kd3 {[%emt 0:03:56]} Kxg4 {[%emt 0:00:25]} 40. Rb4 {[%emt 0:00:00]} f5 {[%emt 0:00:00]} 41. Rc4 {[%emt 0:01:32]} Ne4 {[%emt 0:03:41]} 42. Rc7 {[%emt 0:00:39]} a6 {[%emt 0:15:27]} 43. Rc6 {[%emt 0:05:23]} b5 {[%emt 0:00:28]} 44. Rg6+ {[%emt 0:01:37]} Kf4 {[%emt 0:00:22]} 45. Rg7 {[%emt 0:00:53]} Nf6 {[%emt 0:00:54]} 46. Kd2 {[%emt 0:00:45]} Kf3 {[%emt 0:14:33]} 47. c3 {[%emt 0:01:15]} dxc3+ {[%emt 0:00:57]} 48. Kxc3 {[%emt 0:00:05]} e4 {[%emt 0:02:14]} 49. Rf7 {[%emt 0:01:02]} Nxg8 {[%emt 0:00:05]} 50. hxg8=Q {[%emt 0:00:08]} Rxg8 {[%emt 0:00:04]} 51. Rxf5+ {[%emt 0:00:07]} Ke3 {[%emt 0:02:17]} 52. Rf6 {[%emt 0:00:59]} Rc8+ {[%emt 0:00:09]} 53. Kb3 {[%emt 0:00:12]} Rc4 {[%emt 0:04:29]} 54. Rxa6 {[%emt 0:00:08]} Kd3 {[%emt 0:00:03]} 0-1

[Event "58th Akiba Rubinstein A 2022"]
[Site "Polanica-Zdroj"]
[Date "2022.08.21"]
[Round "9.7"]
[White "Bugajski, Robert"]
[Black "Czechowski, Jakub"]
[Result "0-1"]
[ECO "E61"]
[WhiteElo "2075"]
[BlackElo "2003"]
[Annotator "NA RC"]
[PlyCount "96"]
[EventDate "2022.08.13"]
[EventCountry "POL"]
[SourceTitle "playchess.com"]
[Source "ChessBase"]
[SourceQuality "1"]
[TimeControl "40/5400+30:1800+30"]

1. d4 Nf6 2. c4 g6 3. Nc3 Bg7 4. Nf3 O-O 5. g3 c6 6. Bg2 d5 7. cxd5 cxd5 8. O-O Nc6 9. Ne5 e6 10. Bf4 Nxe5 11. Bxe5 Bd7 12. e3 Qb6 13. Qb3 $11 Rfc8 14. Rfc1 Ne8 15. Bxg7 Kxg7 16. Qxb6 axb6 17. a4 Bxa4 18. e4 dxe4 19. Bxe4 Nd6 20. Bg2 Bc6 21. d5 exd5 22. Rxa8 Rxa8 23. Nxd5 Ra2 24. Nc3 Rxb2 25. Bxc6 bxc6 26. Na4 Rb4 27. Rxc6 Nc4 28. Nc3 Na3 29. Nd5 Rb1+ 30. Kg2 b5 31. Ra6 Nc2 32. Nc3 Rb3 33. Ne4 b4 34. Ra7 Ra3 35. Rc7 b3 36. Ng5 b2 37. Rxf7+ Kg8 38. Rb7 Ne1+ 39. Kh3 Nd3 40. Nxh7 Ra1 41. Nf6+ Kf8 42. Rd7 Ra6 43. Nh7+ Ke8 44. Rxd3 b1=Q 45. Re3+ Kd8 46. Rf3 Ra5 47. Kg2 Qb7 48. h4 Qxh7 0-1

[Event "58th Akiba Rubinstein A 2022"]
[Site "Polanica-Zdroj"]
[Date "2022.08.21"]
[Round "9.8"]
[White "Rog, Bartlomiej"]
[Black "Skrzypczynski, Kacper"]
[Result "1-0"]
[ECO "C41"]
[WhiteElo "2091"]
[BlackElo "1793"]
[Annotator "NA RC"]
[PlyCount "131"]
[EventDate "2022.08.13"]
[EventCountry "POL"]
[SourceTitle "playchess.com"]
[Source "ChessBase"]
[SourceQuality "1"]
[TimeControl "40/5400+30:1800+30"]

1. e4 {[%emt 0:00:05]} d6 {[%emt 0:00:05]} 2. d4 {[%emt 0:00:08]} Nf6 {[%emt 0:00:03]} 3. Nc3 {[%emt 0:00:07]} e5 {[%emt 0:00:03]} 4. Nf3 {[%emt 0:00:08]} Nbd7 {[%emt 0:00:06]} 5. Bc4 {[%emt 0:00:09]} Be7 {[%emt 0:00:03]} 6. O-O {[%emt 0:00:08]} c6 {[%emt 0:00:16]} 7. a4 {[%emt 0:00:11]} O-O {[%emt 0:00:04]} 8. Re1 {[%emt 0:00:08]} h6 {[%emt 0:00:13] now scores much better than the old 8...b6.} 9. h3 {[%emt 0:00:10]} a5 {[%emt 0:00:23]} 10. Be3 {[%emt 0:00:11]} Qc7 {[%emt 0:00:25] [#]} 11. Qd3 $146 {[%emt 0:00:09]} ({Predecessor:} 11. d5 Rd8 12. Qd3 Nc5 13. Bxc5 dxc5 14. Qe3 Nh5 15. Rad1 Rb8 16. dxc6 Rxd1 17. Nxd1 bxc6 18. Qc3 {½-½ (83) Karjakin,S (2771)-Jobava,B (2713) Dubai 2014}) 11... exd4 {[%emt 0:00:38]} 12. Bxd4 {[%emt 0:00:13]} Ne5 {[%emt 0:00:31]} 13. Nxe5 {[%emt 0:03:53]} dxe5 {[%emt 0:00:03]} 14. Be3 {[%emt 0:00:09]} Bb4 {[%emt 0:03:48]} 15. Rad1 {[%emt 0:06:20]} Re8 {[%emt 0:01:05]} 16. Bc1 {[%emt 0:03:33]} Be6 {[%emt 0:00:20]} 17. Bxe6 {[%emt 0:01:54]} Rxe6 {[%emt 0:00:04]} 18. Qc4 {[%emt 0:01:16]} Ree8 {[%emt 0:03:15]} 19. Re3 {[%emt 0:03:22]} Qe7 {[%emt 0:00:30]} 20. Ne2 {[%emt 0:03:04]} g6 $11 {[%emt 0:00:23]} 21. Red3 {[%emt 0:20:12]} Kg7 {[%emt 0:00:24]} 22. Be3 {[%emt 0:08:05]} Red8 {[%emt 0:02:02]} 23. Nc1 {[%emt 0:08:08]} Ne8 {[%emt 0:10:33]} 24. c3 {[%emt 0:02:53]} Bd6 {[%emt 0:00:10]} 25. Bb6 {[%emt 0:03:58]} Bc7 {[%emt 0:00:19]} 26. Bc5 {[%emt 0:00:53]} Rxd3 {[%emt 0:03:56]} 27. Rxd3 {[%emt 0:03:36]} Qg5 {[%emt 0:00:49]} 28. Nb3 {[%emt 0:05:25]} Rd8 {[%emt 0:00:27]} 29. Rf3 {[%emt 0:01:24]} Rd1+ {[%emt 0:00:19]} 30. Kh2 {[%emt 0:00:02]} Rd7 {[%emt 0:00:06]} 31. Ba3 {[%emt 0:03:40]} Bd6 {[%emt 0:09:17]} 32. Nxa5 {[%emt 0:03:40]} Bxa3 {[%emt 0:00:06]} 33. bxa3 {[%emt 0:00:08]} Nd6 {[%emt 0:01:38]} 34. Qe2 {[%emt 0:00:46]} Qc1 {[%emt 0:02:32]} 35. c4 {[%emt 0:07:40]} Nc8 {[%emt 0:02:05]} 36. Qe3 {[%emt 0:01:47]} Qb1 {[%emt 0:01:24]} 37. c5 {[%emt 0:01:14]} h5 {[%emt 0:06:38]} 38. h4 {[%emt 0:02:22]} f6 {[%emt 0:02:30]} 39. Qb3 {[%emt 0:07:20]} Qxe4 {[%emt 0:00:24]} 40. g3 {[%emt 0:00:00]} Ne7 {[%emt 0:00:00]} 41. Nxb7 {[%emt 0:05:11]} Rxb7 {[%emt 0:25:53]} 42. Qxb7 {[%emt 0:00:11]} Qxf3 {[%emt 0:00:02]} 43. Qxe7+ {[%emt 0:00:11]} Kh6 {[%emt 0:00:02]} 44. Qf8+ {[%emt 0:00:18]} Kh7 {[%emt 0:00:03]} 45. Qf7+ {[%emt 0:00:14]} Kh6 {[%emt 0:00:01]} 46. Qa2 {[%emt 0:00:18]} Qc3 {[%emt 0:00:03]} 47. Qg8 {[%emt 0:04:37]} g5 {[%emt 0:00:33]} 48. Qh8+ {[%emt 0:00:23]} Kg6 {[%emt 0:00:07]} 49. Qe8+ {[%emt 0:00:08]} Kg7 {[%emt 0:00:29]} 50. Qe7+ {[%emt 0:09:51]} Kg6 {[%emt 0:00:11]} 51. hxg5 {[%emt 0:00:37]} Kxg5 {[%emt 0:00:13]} 52. Qg7+ {[%emt 0:00:22]} Kf5 {[%emt 0:00:05]} 53. Qd7+ {[%emt 0:00:06]} Kg5 {[%emt 0:00:12]} 54. Qxc6 {[%emt 0:00:15]} Qd4 {[%emt 0:00:42]} 55. Qf3 {[%emt 0:01:17]} Qxa4 {[%emt 0:00:57]} 56. Qc3 {[%emt 0:06:40]} Qc6 {[%emt 0:00:48]} 57. a4 {[%emt 0:01:13]} Kf5 {[%emt 0:00:56]} 58. a5 {[%emt 0:00:54]} Ke6 {[%emt 0:00:18]} 59. Qc4+ {[%emt 0:00:26]} Ke7 {[%emt 0:00:10]} 60. a6 {[%emt 0:01:07]} h4 {[%emt 0:00:26]} 61. a7 {[%emt 0:01:45]} Qf3 {[%emt 0:00:42]} 62. Qc2 {[%emt 0:01:14]} hxg3+ {[%emt 0:00:36]} 63. fxg3 {[%emt 0:00:10]} Qa8 {[%emt 0:01:18]} 64. c6 {[%emt 0:00:12]} Qh8+ {[%emt 0:00:25]} 65. Kg2 {[%emt 0:00:11]} Qa8 {[%emt 0:00:04]} 66. Qh7+ {[%emt 0:00:36]} 1-0

[Event "58th Akiba Rubinstein A 2022"]
[Site "Polanica-Zdroj"]
[Date "2022.08.21"]
[Round "9.9"]
[White "Hetzer, Volkhard"]
[Black "Kazmierowski, Tymon"]
[Result "1/2-1/2"]
[ECO "A48"]
[WhiteElo "1921"]
[BlackElo "1961"]
[Annotator "NA RC"]
[PlyCount "45"]
[EventDate "2022.08.13"]
[EventCountry "POL"]
[SourceTitle "playchess.com"]
[Source "ChessBase"]
[SourceQuality "1"]
[TimeControl "40/5400+30:1800+30"]

1. d4 {[%emt 0:00:26]} Nf6 {[%emt 0:00:07]} 2. Nf3 {[%emt 0:00:04]} g6 {[%emt 0:00:31]} 3. c4 {[%emt 0:01:04]} Bg7 {[%emt 0:00:09]} 4. Nc3 {[%emt 0:00:03]} O-O {[%emt 0:00:13]} 5. Bg5 {[%emt 0:01:01]} d6 {[%emt 0:02:02]} 6. e3 {[%emt 0:00:55]} Nbd7 {[%emt 0:03:11]} 7. Be2 {[%emt 0:00:40]} e5 {[%emt 0:02:34]} 8. dxe5 {[%emt 0:02:02]} dxe5 {[%emt 0:01:49]} 9. Qc2 {[%emt 0:00:23]} c6 {[%emt 0:02:16]} 10. Nd2 {[%emt 0:00:37]} Qe7 {[%emt 0:01:07]} 11. O-O {[%emt 0:01:15]} Nc5 $11 {[%emt 0:03:00]} 12. b4 {[%emt 0:04:36]} Ne6 {[%emt 0:00:33]} 13. Bxf6 {[%emt 0:00:07]} Bxf6 {[%emt 0:00:08]} 14. c5 {[%emt 0:00:10]} Nc7 {[%emt 0:07:05]} 15. Bc4 {[%emt 0:17:59]} Be6 {[%emt 0:03:07]} 16. Qb3 {[%emt 0:01:08]} Nd5 {[%emt 0:06:52]} 17. Nde4 {[%emt 0:01:02]} Nxc3 {[%emt 0:05:09]} 18. Nxf6+ {[%emt 0:12:56]} Qxf6 {[%emt 0:00:10]} 19. Qxc3 {[%emt 0:00:02]} Bxc4 {[%emt 0:01:13]} 20. Qxc4 {[%emt 0:00:22]} Rfd8 {[%emt 0:00:32]} 21. Rad1 {[%emt 0:01:11]} Rxd1 {[%emt 0:02:15]} 22. Rxd1 {[%emt 0:00:08]} Rd8 {[%emt 0:00:34]} 23. Kf1 1/2-1/2

[Event "58th Akiba Rubinstein A 2022"]
[Site "Polanica-Zdroj"]
[Date "2022.08.21"]
[Round "9.10"]
[White "Sliwerski, Radoslaw"]
[Black "Walkusz, Witoslaw"]
[Result "1-0"]
[ECO "E62"]
[WhiteElo "1951"]
[BlackElo "2001"]
[Annotator "TA"]
[PlyCount "145"]
[EventDate "2022.08.13"]
[EventCountry "POL"]
[SourceTitle "playchess.com"]
[Source "ChessBase"]
[SourceQuality "1"]
[TimeControl "40/5400+30:1800+30"]

{[%evp 14,145,41,42,56,40,58,56,67,47,77,69,66,85,151,49,143,25,24,56,54,25,7,18,23,12,15,25,47,26,33,4,94,101,101,111,87,87,103,93,84,93,195,252,229,243,257,239,319,322,324,299,298,145,153,155,157,158,150,148,256,231,339,340,310,302,356,357,332,303,258,7,125,120,119,0,0,0,0,0,0,0,0,1,22,0,0,0,10,0,0,0,0,0,0,0,0,0,0,0,0,0,0,0,0,0,0,0,12848,12848,12849,12849,12850,12850,12850,27999,27999,27999,27999,27999,27999,27999,27999,27999,27999,27999,27999,27999,27998,27998,27999,27997,27999,27999]} 1. d4 {[%emt 0:00:02]} Nf6 2. c4 {[%emt 0:00:05]} g6 {[%emt 0:00:42]} 3. g3 {[%emt 0:00:03]} Bg7 {[%emt 0:00:52]} 4. Bg2 {[%emt 0:00:02]} d6 {[%emt 0:00:50]} 5. Nf3 {[%emt 0:00:10][%cal Bg1f3,Bf3e1,Be1d3][%mdl 32]} O-O {[%emt 0:00:40]} 6. O-O {[%emt 0:00:04]} Nc6 {[%emt 0:01:47]} 7. Nc3 {[%emt 0:00:07]} Bf5 {[%emt 0:07:41] Recently 7...e5 got a lot of attention.} 8. Ne1 {[%emt 0:01:34]} e5 {[%emt 0:04:24] E62: King's Indian: Fianchetto: 6...c6 and Panno Variation (6...Nc6) without ...a6.} 9. d5 {[%emt 0:02:24]} Ne7 {[%emt 0:01:17]} 10. e4 {[%emt 0:01:11]} Bd7 {[%emt 0:00:34] White is slightly better.} 11. Nd3 {[%emt 0:05:43]} Ne8 {[%emt 0:05:15]} 12. f4 {[%emt 0:03:21]} exf4 {[%emt 0:06:33]} 13. Bxf4 {[%emt 0:00:57] [#]} Qc8 $146 {[%emt 0:02:40]} (13... h6 $142) ({Predecessor:} 13... c6 14. Qd2 b5 15. dxc6 Nxc6 16. cxb5 Nd4 17. e5 Rc8 18. exd6 Nxb5 19. Nd5 Nbxd6 {0-1 (47) Shinkevich,V (2439)-Kazhgaleyev,M (2587) St Petersburg 2018}) 14. e5 {[%emt 0:15:51]} (14. Qd2 $1 $16) 14... Bh3 {[%emt 0:05:50]} (14... h6 $14) 15. Ne4 {[%emt 0:06:12]} ({White should try} 15. Bxh3 $16 Qxh3 16. Qe2) 15... Bxg2 $11 {[%emt 0:00:59]} 16. Kxg2 {[%emt 0:00:39]} Nf5 {[%emt 0:08:24] ...dxe5 is the strong threat.} (16... Qf5 17. Re1 $16) 17. Qd2 {[%emt 0:06:13]} dxe5 {[%emt 0:04:32]} 18. Bxe5 {[%emt 0:01:25]} Ned6 {[%emt 0:03:15]} 19. Nxd6 {[%emt 0:02:41]} cxd6 {[%emt 0:01:24]} 20. Bxg7 {[%emt 0:01:02]} Kxg7 {[%emt 0:00:27]} 21. Qc3+ {[%emt 0:03:18]} Kg8 $1 {[%emt 0:00:10]} 22. Rfe1 {[%emt 0:01:54] Against Ne3+} Nh4+ {[%emt 0:10:19]} 23. gxh4 $16 {[%emt 0:04:20] White is more active.} Qg4+ {[%emt 0:00:06]} 24. Kh1 {[%emt 0:00:33][%cal Bg2h1,Bh1g1,Bg1f1,Bf1e2][%mdl 32]} Qf3+ {[%emt 0:00:05]} 25. Kg1 {[%emt 0:00:06]} Qg4+ {[%emt 0:00:07]} 26. Kf1 $1 {[%emt 0:01:18]} Qh3+ {[%emt 0:02:59]} 27. Ke2 $1 {[%emt 0:04:23]} Qxh2+ {[%emt 0:03:04]} (27... Rae8+ $16 28. Kd2 Qxh2+ 29. Kd1 (29. Kc1 b5 $16) 29... b5) 28. Nf2 $18 {[%emt 0:03:35]} Qxh4 {[%emt 0:02:10]} 29. Kf1 {[%emt 0:01:10]} Rfe8 {[%emt 0:01:45]} 30. b4 {[%emt 0:03:30]} b6 {[%emt 0:03:08]} 31. c5 {[%emt 0:02:15]} bxc5 {[%emt 0:00:16]} 32. bxc5 {[%emt 0:00:05] Chess con chili.} dxc5 {[%emt 0:00:11]} 33. Qxc5 {[%emt 0:00:30]} (33. d6 $18 {is more deadly.} Qb4 34. Qxb4 cxb4 35. d7) 33... Rec8 $16 {[%emt 0:00:38]} 34. Qe3 {[%emt 0:02:00]} Qc4+ {[%emt 0:03:40]} 35. Qd3 {[%emt 0:00:33]} Qxd3+ {[%emt 0:01:26]} 36. Nxd3 {[%emt 0:00:02] And now Rad1 would win.} Kf8 {[%emt 0:01:09]} (36... Rd8 $16 {keeps fighting.}) 37. Ne5 $18 {[%emt 0:01:44] aiming for d6.} Rc2 {[%emt 0:02:37]} (37... Rd8 $142 38. Rad1 f6) 38. Rad1 {[%emt 0:04:44]} Rd8 {[%emt 0:05:29] [#]} 39. d6 $1 {[%emt 0:01:22]} f6 {[%emt 0:03:50]} 40. Nf3 {[%emt 0:00:00] Strongly threatening Nd4.} Rd7 {[%emt 0:00:00]} 41. Nd4 {[%emt 0:08:33] Against Rc6} Rc4 {[%emt 0:06:17]} 42. Nb5 $2 {[%emt 0:05:06]} (42. Re3 $18) 42... a6 {[%emt 0:03:17]} (42... Rc5 $11 43. Rb1 Rf5+ 44. Kg1 Rg5+ 45. Kf2 Rf5+ 46. Kg2 Rg5+ 47. Kf3 Rf5+ 48. Kg3 Rg5+ 49. Kf3 Rf5+ 50. Kg3 Rg5+ 51. Kh3 Rh5+ 52. Kg3 Rg5+) 43. Nc7 $16 {[%emt 0:00:59]} Rc6 {[%emt 0:00:51] [#]} 44. Re8+ {[%emt 0:15:50]} ({White has to play} 44. Ne8 $1 $16 {Black must now prevent Re6.} Rc5 45. Re3) 44... Kf7 $11 {[%emt 0:00:02]} 45. Rh8 {[%emt 0:00:48]} Rdxd6 {[%emt 0:06:11]} 46. Rxh7+ {[%emt 0:01:06]} Kg8 {[%emt 0:00:08]} 47. Rxd6 {[%emt 0:00:29]} Rxd6 {[%emt 0:02:02][%mdl 4096] Endgame KRN-KR} 48. Re7 {[%emt 0:00:15]} Kf8 {[%emt 0:03:22]} 49. Re3 {[%emt 0:05:59]} Rc6 $1 {[%emt 0:04:50]} 50. Ne6+ {[%emt 0:04:48]} Kg8 {[%emt 0:00:42]} 51. Nd4 {[%emt 0:00:41]} Rc4 {[%emt 0:02:36]} 52. Ne2 {[%emt 0:02:49]} Ra4 $1 {[%emt 0:00:50] Prevents Ra3.} 53. Nc3 {[%emt 0:00:20]} Ra3 {[%emt 0:00:24]} 54. Ke2 {[%emt 0:00:31]} Kf7 {[%emt 0:00:47]} 55. Kd3 {[%emt 0:00:58]} g5 {[%emt 0:00:48]} 56. Kc4 {[%emt 0:00:50] Threatens to win with Kb4.} Ra5 $1 {[%emt 0:00:27]} 57. Kb4 {[%emt 0:01:00]} Rf5 {[%emt 0:01:04]} 58. a4 {[%emt 0:00:40]} a5+ {[%emt 0:02:16]} 59. Kc4 {[%emt 0:00:11]} Kg6 {[%emt 0:01:59]} 60. Nd5 {[%emt 0:02:45] Hoping for Ne7+.} Re5 {[%emt 0:01:43][%mdl 8192]} (60... Rf1 $11) 61. Rxe5 $18 {[%emt 0:02:05]} fxe5 {[%emt 0:00:05] KN-K3P} 62. Ne3 {[%emt 0:00:07]} Kh5 {[%emt 0:03:51]} 63. Kb5 {[%emt 0:03:37]} g4 {[%emt 0:00:21]} 64. Kxa5 {[%emt 0:00:06] KN-KPP} g3 {[%emt 0:01:04] White mates.} 65. Kb4 {[%emt 0:00:12]} Kg5 {[%emt 0:00:09]} 66. Ng2 {[%emt 0:01:22]} Kg4 {[%emt 0:00:18]} 67. Ne1 {[%emt 0:00:49]} Kf4 {[%emt 0:01:55]} 68. a5 {[%emt 0:00:06]} Ke3 {[%emt 0:00:08]} 69. a6 {[%emt 0:00:27]} Kf2 {[%emt 0:00:16]} 70. a7 {[%emt 0:00:08]} Kxe1 {[%emt 0:00:15]} 71. a8=Q {[%emt 0:00:09]} Kf2 {[%emt 0:00:03]} 72. Qa2+ {[%emt 0:00:15]} Kf1 {[%emt 0:00:21]} 73. Qa1+ {[%emt 0:00:12] Weighted Error Value: White=0.25 (precise) /Black=0.19 (very precise)} 1-0

[Event "58th Akiba Rubinstein A 2022"]
[Site "Polanica-Zdroj"]
[Date "2022.08.21"]
[Round "9.11"]
[White "Paprocki, Antoni"]
[Black "Betkowski, Andrzej"]
[Result "1-0"]
[ECO "C03"]
[WhiteElo "1981"]
[BlackElo "2063"]
[Annotator "NA RC"]
[PlyCount "71"]
[EventDate "2022.08.13"]
[EventCountry "POL"]
[SourceTitle "playchess.com"]
[Source "ChessBase"]
[SourceQuality "1"]
[TimeControl "40/5400+30:1800+30"]

1. e4 {[%emt 0:00:03]} e6 {[%emt 0:00:20]} 2. d4 {[%emt 0:00:05]} d5 {[%emt 0:00:08]} 3. Nd2 {[%emt 0:00:06]} a6 {[%emt 0:00:38]} 4. Ngf3 {[%emt 0:00:15]} Nf6 {[%emt 0:00:20]} 5. e5 {[%emt 0:00:21]} Nfd7 {[%emt 0:00:10]} 6. Bd3 {[%emt 0:00:07]} c5 {[%emt 0:00:13]} 7. c3 {[%emt 0:00:06]} Nc6 {[%emt 0:00:45]} 8. O-O {[%emt 0:00:54]} g5 {[%emt 0:01:14]} 9. Nb3 {[%emt 0:03:27]} h6 {[%emt 0:00:34]} 10. Nxc5 {[%emt 0:02:34]} Nxc5 {[%emt 0:01:16]} 11. dxc5 {[%emt 0:00:06]} Bxc5 {[%emt 0:00:20]} 12. b4 {[%emt 0:08:51]} Bf8 {[%emt 0:10:04]} 13. h3 {[%emt 0:03:10]} Qc7 {[%emt 0:04:06]} 14. Qe2 $14 {[%emt 0:02:07]} Bg7 {[%emt 0:02:36]} 15. Re1 {[%emt 0:00:10]} Bd7 {[%emt 0:03:53]} 16. a4 {[%emt 0:01:48]} Ne7 {[%emt 0:06:01]} 17. Ba3 {[%emt 0:07:19]} Ng6 {[%emt 0:07:20]} 18. Bxg6 {[%emt 0:04:33]} fxg6 {[%emt 0:00:12]} 19. b5 {[%emt 0:00:44]} Qc4 {[%emt 0:07:11]} 20. Qc2 {[%emt 0:02:59]} Kf7 {[%emt 0:00:16]} 21. Re3 {[%emt 0:04:01]} Be8 {[%emt 0:06:50]} 22. Nd4 {[%emt 0:08:53]} Qc8 {[%emt 0:01:52]} 23. b6 {[%emt 0:03:20]} Kg8 {[%emt 0:03:40]} 24. c4 {[%emt 0:01:53]} Kh7 {[%emt 0:04:01]} 25. Rc1 {[%emt 0:03:35]} Bc6 {[%emt 0:03:09]} 26. cxd5 {[%emt 0:03:59]} Bxd5 {[%emt 0:00:26]} 27. Rc3 {[%emt 0:00:25]} Qd8 {[%emt 0:02:17]} 28. Rc7 {[%emt 0:00:25]} Rg8 {[%emt 0:01:09]} 29. Bd6 {[%emt 0:05:40]} g4 {[%emt 0:01:04]} 30. Be7 {[%emt 0:00:56]} Qe8 {[%emt 0:01:34]} 31. hxg4 {[%emt 0:00:22]} Kh8 {[%emt 0:03:53]} 32. Bf6 {[%emt 0:00:47]} Bxf6 {[%emt 0:03:48]} 33. exf6 {[%emt 0:00:08]} Qf8 {[%emt 0:00:21]} 34. Qd2 {[%emt 0:03:10]} e5 {[%emt 0:02:48]} 35. Nf3 {[%emt 0:01:46]} Rd8 {[%emt 0:01:46]} 36. Nxe5 {[%emt 0:00:34]} 1-0